bitfinex/quotes_ETHUSD_20250604
["timestamp","ask_amount","ask_price","bid_price","bid_amount"]
[1749025420373,0.7817,2641.6,2641.1,3.498707]
[1749025420509,0.7817,2641.6,2641.0,8.0]
[1749025420709,0.7817,2641.6,2640.8,0.57153832]
[1749025420932,0.7817,2641.6,2641.0,8.0]
[1749025421131,0.7817,2641.6,2640.8,0.57153832]
[1749025421333,0.7817,2641.6,2640.9,10.0]
[1749025421744,0.7817,2641.6,2640.9,8.92683263]
[1749025421945,0.7817,2641.6,2640.9,10.0]
[1749025422360,0.7817,2641.6,2640.4,10.0]
[1749025422660,0.8118,2641.4,2640.5,10.0]
[1749025422820,0.8118,2641.2,2640.5,0.23522319]
[1749025423014,0.8118,2641.2,2640.5,10.57153832]
[1749025423253,0.8118,2641.2,2640.7,10.0]
[1749025423520,0.8118,2641.2,2640.9,10.0]
[1749025423737,0.8118,2641.2,2640.5,8.0]
[1749025423931,1.45018,2641.3,2640.3,0.41423965]
[1749025423932,0.7936,2641.0,2640.7,8.0]
[1749025424136,0.7936,2641.0,2640.5,8.0]
[1749025424340,0.7936,2641.0,2640.3,0.41423965]
[1749025424567,0.7936,2641.0,2640.5,8.0]
[1749025425166,0.7936,2641.0,2640.0,10.0]
[1749025425397,0.8136,2641.2,2640.3,0.55]
[1749025425668,0.8136,2641.4,2640.7,8.0]
[1749025425851,0.902,2641.5,2641.0,10.0]
[1749025426164,0.902,2641.5,2641.2,10.0]
[1749025426364,0.902,2641.5,2641.4,10.0]
[1749025426550,0.902,2641.5,2641.4,10.57153832]
[1749025427477,0.902,2641.5,2641.4,10.0]
[1749025431070,0.7875,2641.8,2641.4,18.0]
[1749025431255,0.902,2641.6,2641.4,8.0]
[1749025431667,0.7875,2641.8,2641.4,8.0]
[1749025431872,0.902,2641.6,2641.4,8.0]
[1749025432860,0.7875,2641.8,2641.4,8.0]
[1749025433114,0.8174,2641.6,2641.4,8.0]
[1749025433317,0.8174,2641.6,2640.5,0.98577797]
[1749025433469,0.8174,2641.6,2640.7,8.0]
[1749025433808,0.8174,2641.6,2640.6,0.21745435]
[1749025433987,0.8174,2641.6,2640.8,8.0]
[1749025434160,0.8174,2641.4,2640.6,10.0]
[1749025434973,0.8174,2641.4,2640.7,8.0]
[1749025435162,0.8174,2641.4,2640.5,0.57153832]
[1749025435481,0.8174,2641.4,2640.6,18.0]
[1749025435650,0.8174,2641.4,2640.7,8.0]
[1749025435854,0.8174,2641.4,2640.5,0.57153832]
[1749025436095,0.8174,2641.4,2640.7,8.0]
[1749025436266,0.8174,2641.4,2640.5,0.57153832]
[1749025436455,0.8174,2641.4,2640.3,10.0]
[1749025436656,0.8174,2641.4,2640.1,18.0]
[1749025436964,0.8174,2641.4,2640.4,8.0]
[1749025437165,0.8174,2641.4,2640.5,10.0]
[1749025437588,0.8174,2641.4,2640.1,0.57153832]
[1749025437879,0.8174,2641.4,2640.5,8.0]
[1749025438083,0.8174,2641.4,2640.3,8.0]
[1749025438265,0.8174,2641.4,2640.1,0.57153832]
[1749025438466,0.7908,2641.2,2640.9,8.0]
[1749025438794,0.7908,2641.2,2640.7,8.0]
[1749025438953,0.7908,2641.2,2640.9,8.0]
[1749025439365,0.7908,2641.2,2640.5,8.0]
[1749025439566,0.7908,2641.2,2640.7,8.0]
[1749025439795,0.02,2641.9,2640.6,10.0]
[1749025439796,0.7908,2641.7,2641.0,10.0]
[1749025440002,0.7908,2641.7,2641.3,8.0]
[1749025440167,0.7908,2641.7,2641.6,4.895824]
[1749025440913,0.7908,2641.7,2641.1,0.57153832]
[1749025441109,0.7908,2641.7,2641.4,10.0]
[1749025441621,0.7908,2641.7,2641.3,8.0]
[1749025441825,0.7908,2641.7,2641.1,0.57153832]
[1749025442115,0.7908,2641.7,2641.5,8.0]
[1749025442297,0.7908,2641.7,2641.3,8.0]
[1749025442471,0.7908,2641.7,2641.5,8.0]
[1749025442669,0.7908,2641.7,2641.3,8.0]
[1749025442923,0.893,2641.8,2641.5,8.0]
[1749025443113,0.893,2641.8,2641.7,8.0]
[1749025443313,0.893,2641.8,2641.4,10.0]
[1749025443478,0.893,2641.8,2641.5,8.0]
[1749025443676,0.893,2641.8,2641.3,0.57153832]
[1749025443876,0.893,2641.8,2641.5,8.0]
[1749025444076,0.893,2641.8,2641.3,0.57153832]
[1749025444303,0.893,2641.8,2641.7,8.0]
[1749025444523,0.893,2641.8,2641.0,1.76030386]
[1749025444826,0.893,2641.8,2641.5,10.0]
[1749025446180,0.7993,2641.7,2641.2,8.0]
[1749025446378,0.7993,2641.7,2641.4,8.0]
[1749025446704,0.7993,2641.7,2641.1,10.0]
[1749025446910,0.7993,2641.7,2641.2,8.0]
[1749025447234,0.7993,2641.7,2641.0,8.0]
[1749025447554,0.7993,2641.7,2640.8,10.0]
[1749025447851,0.7993,2641.7,2640.9,20.0]
[1749025448143,0.7993,2641.7,2641.4,8.0]
[1749025448344,0.7993,2641.7,2641.0,8.0]
[1749025448512,0.7993,2641.7,2641.2,8.0]
[1749025448716,0.7993,2641.7,2641.4,8.0]
[1749025448914,0.7993,2641.7,2640.8,0.57153832]
[1749025449117,0.7993,2641.7,2641.1,10.0]
[1749025449298,0.7993,2641.7,2641.3,10.0]
[1749025450027,0.7993,2641.7,2641.4,8.0]
[1749025450232,0.7993,2641.7,2641.0,8.0]
[1749025450558,0.02,2641.9,2641.4,8.0]
[1749025450753,0.02,2641.9,2641.6,8.0]
[1749025450898,0.02,2641.9,2641.8,8.0]
[1749025451100,0.02,2641.9,2641.8,18.0]
[1749025455146,0.02,2641.9,2641.8,8.0]
[1749025455347,0.7718,2641.9,2641.8,10.537]
[1749025456681,0.7565,2641.8,2641.3,10.0]
[1749025456809,0.7565,2641.8,2641.2,8.0]
[1749025457012,0.7565,2641.8,2641.4,8.0]
[1749025457217,0.7565,2641.8,2641.1,0.57153832]
[1749025457413,0.7565,2641.8,2641.3,8.0]
[1749025457612,0.7565,2641.8,2641.1,0.57153832]
[1749025457613,0.7565,2641.8,2641.7,8.0]
[1749025457810,0.7565,2641.8,2641.7,16.399269]
[1749025458016,0.7565,2641.8,2641.3,8.0]
[1749025458252,0.7565,2641.8,2640.9,1.18876554]
[1749025458564,0.7565,2641.8,2641.3,8.0]
[1749025458730,0.7565,2641.8,2640.9,1.18876554]
[1749025458931,0.7565,2641.8,2641.1,8.0]
[1749025459140,0.7565,2641.8,2641.5,8.0]
[1749025459338,0.7565,2641.8,2641.3,10.0]
[1749025459546,0.7565,2641.8,2641.5,8.0]
[1749025459751,0.7565,2641.8,2641.3,18.0]
[1749025460055,0.7565,2641.8,2641.2,1.8]
[1749025460254,0.7565,2641.8,2641.5,8.0]
[1749025460469,0.7565,2641.8,2641.1,0.57153832]
[1749025460755,0.7565,2641.8,2641.5,18.0]
[1749025460965,0.7565,2641.8,2641.6,8.0]
[1749025461269,0.02,2641.9,2641.8,18.0]
[1749025462048,0.02,2641.9,2641.8,18.57153832]
[1749025463276,0.02,2641.9,2641.8,18.0]
[1749025466359,0.02,2641.9,2641.8,10.0]
[1749025466573,0.02,2641.9,2641.5,10.0]
[1749025467715,0.02,2641.9,2641.4,10.0]
[1749025467874,0.02,2641.9,2641.6,20.0]
[1749025468074,0.02,2641.9,2641.6,10.0]
[1749025468288,0.7898,2641.9,2641.3,1.18876554]
[1749025468483,0.7898,2641.9,2641.3,4.351183]
[1749025468683,0.7898,2641.9,2641.0,10.0]
[1749025468919,0.7898,2641.9,2640.4,1.49131151]
[1749025468920,0.7898,2641.9,2640.8,10.0]
[1749025469219,0.7898,2641.9,2640.9,10.0]
[1749025469789,0.7898,2641.9,2641.1,10.0]
[1749025469985,0.7898,2641.9,2641.0,10.0]
[1749025471392,0.7898,2641.9,2641.1,10.0]
[1749025471744,0.7898,2641.9,2640.6,1.18876554]
[1749025471922,0.7898,2641.9,2640.6,10.0]
[1749025472121,0.7898,2641.9,2640.8,10.0]
[1749025472429,0.7898,2641.9,2640.7,10.0]
[1749025472725,0.8169,2641.7,2640.7,8.0]
[1749025472911,0.8169,2641.7,2640.8,10.0]
[1749025473495,0.8169,2641.7,2640.7,8.0]
[1749025473797,0.8169,2641.7,2641.0,10.0]
[1749025475921,0.8169,2641.7,2641.2,8.0]
[1749025476128,0.8169,2641.7,2640.5,0.57153832]
[1749025476341,0.8169,2641.7,2640.9,8.0]
[1749025476497,0.8169,2641.7,2641.0,10.0]
[1749025476905,0.8169,2641.7,2641.2,8.0]
[1749025477111,0.8169,2641.7,2640.5,0.57153832]
[1749025477318,0.8169,2641.7,2640.9,8.0]
[1749025477518,0.8169,2641.7,2641.0,10.0]
[1749025477838,0.8169,2641.7,2641.2,8.0]
[1749025478057,0.8169,2641.7,2640.5,0.57153832]
[1749025478219,0.8169,2641.7,2640.9,8.0]
[1749025478552,0.8169,2641.7,2641.0,10.0]
[1749025480154,0.93,2641.6,2641.0,10.0]
[1749025480655,0.7953,2641.5,2641.0,10.0]
[1749025481858,0.7953,2641.5,2640.0,0.41423965]
[1749025481859,0.7953,2641.5,2640.3,1.18876554]
[1749025482038,0.8239,2641.1,2640.0,1.18876554]
[1749025482352,0.8239,2641.1,2640.0,10.0]
[1749025482530,0.8239,2641.1,2640.2,15.918184]
[1749025482734,0.8239,2641.1,2640.4,6.568651]
[1749025483037,0.8239,2641.1,2639.7,1.18876554]
[1749025483243,0.8239,2641.1,2639.8,10.0]
[1749025483439,0.8239,2641.1,2639.9,8.0]
[1749025483614,0.8239,2641.1,2640.3,8.0]
[1749025483817,0.8239,2641.1,2640.4,10.0]
[1749025484338,0.55,2640.8,2639.7,10.0]
[1749025484682,0.7736,2640.6,2639.5,10.0]
[1749025484883,0.7736,2640.6,2640.0,8.0]
[1749025485052,0.7736,2640.6,2639.5,0.57153832]
[1749025485219,0.7736,2640.6,2639.7,8.0]
[1749025485420,0.7736,2640.6,2639.9,8.0]
[1749025485617,0.7736,2640.6,2639.5,0.57153832]
[1749025485865,0.7736,2640.6,2639.9,8.0]
[1749025486032,0.7736,2640.6,2640.1,8.0]
[1749025486346,0.8284,2640.4,2639.6,10.0]
[1749025486547,0.8284,2640.4,2639.9,8.0]
[1749025486771,0.8284,2640.4,2639.4,8.0]
[1749025486964,0.8284,2640.4,2639.6,8.0]
[1749025487132,0.8284,2640.4,2639.5,1.8]
[1749025487337,0.8284,2640.4,2639.8,8.0]
[1749025487535,0.8284,2640.4,2640.0,8.0]
[1749025487759,0.8284,2640.4,2640.1,10.0]
[1749025487929,0.8284,2640.4,2640.1,3.112073]
[1749025488132,0.8284,2640.4,2639.5,0.57153832]
[1749025488334,0.8284,2640.4,2639.8,10.0]
[1749025488541,0.8284,2640.4,2640.1,8.0]
[1749025488771,0.8284,2640.4,2639.7,8.0]
[1749025489059,0.8284,2640.4,2640.1,10.0]
[1749025491464,0.8284,2640.4,2640.3,8.0]
[1749025491761,0.8284,2640.4,2640.3,18.0]
[1749025493055,0.8284,2640.4,2640.3,10.0]
[1749025493365,0.8284,2640.4,2639.4,10.0]
[1749025493524,0.8284,2640.4,2639.6,10.0]
[1749025494176,0.8284,2640.4,2639.7,8.0]
[1749025494355,0.8284,2640.4,2639.9,8.0]
[1749025494557,0.8284,2640.4,2640.3,8.0]
[1749025494872,0.8284,2640.4,2640.3,18.0]
[1749025495634,0.8228,2640.6,2640.4,10.0]
[1749025495844,0.93,2640.7,2640.5,8.0]
[1749025496054,0.8228,2642.0,2640.8,10.0]
[1749025496272,0.8228,2642.0,2641.2,10.0]
[1749025496475,0.913,2642.5,2641.4,10.0]
[1749025496679,0.8163,2642.3,2641.6,10.0]
[1749025496831,0.8163,2642.3,2641.8,10.0]
[1749025497232,0.8163,2642.3,2641.8,18.0]
[1749025498130,0.913,2642.5,2641.8,18.0]
[1749025501364,0.913,2642.5,2641.8,10.8475354]
[1749025503454,0.7794,2642.6,2641.8,10.8475354]
[1749025503651,1.6914,2642.6,2641.8,10.8475354]
[1749025503955,1.6914,2642.6,2641.6,10.0]
[1749025504166,1.6914,2642.6,2641.8,10.0]
[1749025504537,0.7794,2642.6,2641.8,10.0]
[1749025505046,0.7794,2642.6,2641.9,10.0]
[1749025505279,0.8343,2642.9,2641.9,10.0]
[1749025505579,1.7463,2642.9,2641.8,10.0]
[1749025505780,0.8343,2642.9,2641.8,10.0]
[1749025505938,0.02,2642.9,2642.2,10.0]
[1749025506141,0.02,2642.9,2642.3,8.0]
[1749025506345,0.8204,2643.6,2642.6,10.0]
[1749025506535,0.8204,2643.6,2642.5,8.0]
[1749025506536,0.8204,2643.6,2642.8,10.0]
[1749025506740,0.8204,2643.6,2643.0,10.0]
[1749025506940,0.8204,2643.6,2643.2,10.0]
[1749025507346,0.35420974,2644.4,2643.4,8.0]
[1749025507347,0.912,2643.8,2643.4,8.0]
[1749025507551,0.912,2643.8,2643.6,10.0]
[1749025507748,0.8139,2643.9,2642.1,0.55]
[1749025508079,0.912,2643.8,2642.7,8.0]
[1749025508378,0.912,2643.8,2643.1,8.0]
[1749025508687,0.8139,2643.9,2642.3,0.55]
[1749025508688,1.7259,2643.9,2643.4,10.0]
[1749025508872,0.8139,2643.9,2643.4,10.0]
[1749025510086,1.7259,2643.9,2643.4,10.0]
[1749025511500,0.7926,2643.8,2642.1,0.3159542]
[1749025511820,0.932,2643.9,2642.2,10.0]
[1749025511821,0.55,2643.7,2642.2,10.0]
[1749025511979,0.7926,2643.6,2642.5,8.0]
[1749025512326,0.55,2643.5,2642.9,8.0]
[1749025512510,0.55,2643.5,2642.3,1.03159542]
[1749025512511,0.7716,2643.4,2642.4,10.0]
[1749025512881,0.7716,2643.4,2642.7,8.0]
[1749025513193,0.7716,2643.4,2642.5,8.0]
[1749025513402,0.7716,2643.4,2642.7,8.0]
[1749025513603,0.7716,2643.4,2642.3,1.03159542]
[1749025513802,0.7716,2643.4,2641.8,8.0]
[1749025514006,0.7716,2643.4,2642.2,8.0]
[1749025514207,0.912,2643.3,2642.3,10.0]
[1749025514620,0.7716,2643.4,2642.3,10.0]
[1749025514821,0.912,2643.3,2642.5,10.0]
[1749025514983,0.912,2643.3,2642.7,10.0]
[1749025517124,0.912,2643.3,2642.8,8.0]
[1749025517321,0.912,2643.3,2642.9,10.0]
[1749025519609,0.912,2643.3,2642.9,8.937689]
[1749025519909,0.7716,2643.4,2642.9,8.937689]
[1749025520096,1.6836,2643.4,2642.9,8.937689]
[1749025520622,1.6351,2643.4,2642.9,8.937689]
[1749025520929,1.6351,2643.4,2642.3,0.0485]
[1749025521127,1.6351,2643.4,2642.6,10.0]
[1749025521322,0.912,2643.4,2642.8,10.0]
[1749025521531,0.912,2643.4,2642.2,8.0]
[1749025521727,0.912,2643.4,2642.5,8.0]
[1749025521887,0.912,2643.4,2642.9,8.0]
[1749025522220,0.912,2643.4,2642.5,8.0]
[1749025522421,0.912,2643.4,2642.9,8.0]
[1749025522596,0.912,2643.4,2642.3,1.8]
[1749025522597,0.912,2643.4,2642.4,10.0]
[1749025522799,0.912,2643.4,2642.7,8.0]
[1749025523004,0.912,2643.4,2642.5,0.42988418]
[1749025523205,0.912,2643.4,2642.2,8.0]
[1749025523406,0.912,2643.4,2642.5,10.0]
[1749025523623,0.7574,2643.3,2642.7,10.0]
[1749025524514,0.7574,2643.3,2642.0,0.61580469]
[1749025524840,0.8152,2642.9,2642.1,3.467362]
[1749025524998,0.8152,2642.9,2641.8,10.0]
[1749025525198,0.8152,2642.9,2642.0,20.0]
[1749025525414,0.8152,2642.9,2642.0,10.0]
[1749025526011,0.8152,2642.9,2642.3,8.0]
[1749025526217,0.8152,2642.9,2641.9,1.57215469]
[1749025526437,0.8152,2642.9,2642.0,10.0]
[1749025526798,0.8152,2642.9,2642.2,10.0]
[1749025527009,0.55,2642.4,2641.3,11.18876554]
[1749025527204,1.7222,2642.3,2641.4,8.0]
[1749025527446,1.7222,2642.3,2641.3,10.0]
[1749025527600,0.919,2642.3,2641.5,20.0]
[1749025527939,0.7855,2642.2,2641.6,8.0]
[1749025528242,0.7855,2642.2,2641.4,1.12372655]
[1749025528553,0.7855,2642.2,2641.2,10.0]
[1749025529424,0.7855,2642.2,2641.7,8.0]
[1749025529624,0.7855,2642.2,2641.1,0.02]
[1749025529942,0.7855,2642.2,2641.7,8.0]
[1749025530152,0.919,2642.1,2641.9,8.0]
[1749025530472,0.919,2642.1,2641.1,0.02]
[1749025530473,0.919,2642.1,2641.5,8.0]
[1749025530618,0.919,2642.1,2641.6,10.0]
[1749025530819,0.919,2642.1,2641.7,8.0]
[1749025531047,0.919,2642.1,2641.9,8.0]
[1749025531350,0.919,2642.1,2641.3,8.0]
[1749025531530,0.919,2642.1,2641.7,8.0]
[1749025531917,0.919,2642.1,2641.3,8.0]
[1749025532151,0.7712,2642.0,2641.5,8.0]
[1749025532353,0.7712,2642.0,2641.6,10.0]
[1749025532720,0.7712,2642.0,2641.1,0.02]
[1749025533058,0.7712,2642.0,2641.4,10.0]
[1749025535052,0.7712,2642.0,2641.6,10.0]
[1749025535456,0.7712,2642.0,2641.8,10.0]
[1749025535629,0.7712,2642.0,2641.9,8.0]
[1749025535835,0.7712,2642.0,2641.6,10.0]
[1749025536031,0.7712,2642.0,2641.8,10.0]
[1749025536222,0.7712,2642.0,2641.2,0.50188802]
[1749025536423,0.7712,2642.0,2641.6,8.0]
[1749025536643,0.7712,2642.0,2641.7,10.0]
[1749025538938,0.7712,2642.0,2641.6,8.0]
[1749025539266,0.7712,2642.0,2641.9,8.0]
[1749025539428,0.7712,2642.0,2641.6,8.0]
[1749025539631,0.7712,2642.0,2641.8,8.0]
[1749025539860,0.7712,2642.0,2641.4,8.0]
[1749025540163,0.7712,2642.0,2641.8,8.0]
[1749025540367,1.6902,2642.0,2641.4,8.0]
[1749025540565,1.6902,2642.0,2641.6,8.0]
[1749025540728,1.6902,2642.0,2641.5,1.8]
[1749025540931,0.7712,2642.0,2641.6,10.0]
[1749025541130,0.7712,2642.0,2641.2,0.95448339]
[1749025541329,0.7712,2642.0,2641.6,8.0]
[1749025541524,0.7712,2642.0,2641.8,8.0]
[1749025541727,0.7712,2642.0,2641.4,8.0]
[1749025541931,0.7712,2642.0,2641.8,8.0]
[1749025542263,0.7712,2642.0,2641.4,8.0]
[1749025542472,0.7712,2642.0,2641.8,8.0]
[1749025542629,0.7712,2642.0,2641.2,0.95448339]
[1749025542830,0.7712,2642.0,2641.6,8.0]
[1749025543029,0.7712,2642.0,2641.8,8.0]
[1749025543347,1.7226,2642.3,2641.9,0.50188802]
[1749025543667,0.8036,2642.3,2642.0,10.0]
[1749025545168,0.8036,2642.3,2642.1,8.0]
[1749025545367,0.8036,2642.3,2642.2,10.0]
[1749025545777,0.8036,2642.3,2642.2,4.831569]
[1749025546477,0.8036,2642.3,2641.7,10.0]
[1749025546645,0.8036,2642.3,2641.9,10.0]
[1749025546987,0.8036,2642.3,2642.1,10.0]
[1749025547175,0.8036,2642.3,2642.2,18.0]
[1749025547548,0.8036,2642.3,2642.2,9.51403797]
[1749025547866,0.8036,2642.3,2641.7,10.0]
[1749025548060,0.8036,2642.3,2641.8,10.0]
[1749025549413,0.8036,2642.3,2641.9,10.0]
[1749025549576,0.8036,2642.3,2642.0,8.0]
[1749025549771,0.8036,2642.3,2642.1,10.0]
[1749025550104,0.8036,2642.3,2642.2,8.0]
[1749025550302,0.8036,2642.3,2642.2,18.0]
[1749025550500,0.8036,2642.3,2642.2,10.0]
[1749025550705,0.8036,2642.3,2641.9,10.0]
[1749025551464,0.7909,2642.7,2642.1,20.0]
[1749025551815,0.7909,2642.7,2642.0,8.0]
[1749025552007,0.7909,2642.7,2642.1,10.0]
[1749025553566,0.7909,2642.7,2642.1,9.155128]
[1749025553989,0.7909,2642.7,2642.1,8.029459]
[1749025554164,0.7909,2642.7,2642.2,10.0]
[1749025554380,0.7909,2642.7,2642.1,10.0]
[1749025554581,0.7909,2642.7,2642.2,10.0]
[1749025554772,0.7909,2642.7,2642.2,8.412235]
[1749025554973,0.7909,2642.7,2642.2,10.0]
[1749025555506,0.7909,2642.7,2642.1,10.0]
[1749025555703,0.55,2642.4,2641.7,1.18876554]
[1749025555932,0.8266,2642.3,2641.5,1.18876554]
[1749025556215,0.8266,2642.3,2641.9,8.0]
[1749025556519,0.8266,2642.3,2641.8,10.0]
[1749025556723,1.7186,2642.3,2641.5,1.18876554]
[1749025557018,1.94546,2642.3,2641.8,10.0]
[1749025557183,1.94546,2642.3,2641.6,0.50188802]
[1749025557512,1.94546,2642.3,2641.9,10.0]
[1749025558214,1.94546,2642.3,2641.9,3.154187]
[1749025558519,1.94546,2642.3,2641.9,10.0]
[1749025559612,6.61546,2642.3,2641.9,10.0]
[1749025560174,1.05346,2642.3,2641.9,10.0]
[1749025560370,0.892,2642.2,2641.9,10.0]
[1749025561233,1.141546,2642.2,2641.9,10.0]
[1749025563545,0.7812,2642.1,2641.9,10.0]
[1749025563752,0.7812,2642.1,2641.4,0.40409537]
[1749025563753,0.7812,2642.1,2641.5,10.0]
[1749025563919,0.7812,2642.1,2641.6,8.0]
[1749025564114,0.7812,2642.1,2641.6,10.0]
[1749025564431,0.7812,2642.1,2641.7,10.0]
[1749025564648,0.892,2642.0,2641.7,10.0]
[1749025564853,1.6732,2642.1,2641.7,10.0]
[1749025565197,1.0842746,2642.1,2641.7,10.0]
[1749025565396,0.8081,2642.0,2641.6,8.0]
[1749025565628,0.8081,2642.0,2641.8,10.0]
[1749025565813,0.8081,2642.0,2641.7,10.0]
[1749025567413,0.8081,2642.0,2641.7,2.746186]
[1749025567611,0.8081,2642.0,2641.8,10.0]
[1749025567839,0.8081,2642.0,2641.7,3.003782]
[1749025568015,0.8081,2642.0,2641.8,10.0]
[1749025568213,0.8081,2642.0,2641.7,3.191692]
[1749025568422,0.8081,2642.0,2641.8,10.0]
[1749025568615,0.8081,2642.0,2641.6,8.0]
[1749025568616,0.8081,2642.0,2641.7,10.0]
[1749025568834,0.8081,2642.0,2641.7,3.503872]
[1749025569146,0.8081,2642.0,2641.8,10.0]
[1749025569445,0.8081,2642.0,2641.7,10.0]
[1749025569647,1.44511,2642.0,2641.6,8.0]
[1749025570018,1.44511,2642.0,2641.8,10.0]
[1749025570205,1.44511,2642.0,2641.7,6.576469]
[1749025570408,1.44511,2642.0,2641.6,8.0]
[1749025570730,5.562,2642.1,2641.2,2.20905585]
[1749025570731,0.7828,2641.8,2641.2,0.50188802]
[1749025570934,0.7828,2641.8,2641.4,10.0]
[1749025571112,0.7828,2641.8,2641.5,10.0]
[1749025571306,0.7828,2641.8,2641.2,0.50188802]
[1749025571512,0.7828,2641.8,2641.4,8.0]
[1749025571950,0.7828,2641.8,2641.2,0.50188802]
[1749025572455,0.55,2642.1,2641.6,8.0]
[1749025572660,1.6585,2642.0,2641.6,8.0]
[1749025572966,1.6585,2642.0,2641.6,0.50188802]
[1749025573438,1.6585,2642.0,2641.7,4.511211]
[1749025573631,0.7665,2642.0,2641.5,8.0]
[1749025573845,0.892,2641.9,2641.5,8.0]
[1749025574143,0.7665,2642.0,2641.6,20.0]
[1749025574344,0.7665,2642.0,2641.6,10.0]
[1749025574562,0.7665,2642.0,2641.6,8.0]
[1749025574752,0.7665,2642.0,2641.2,1.40024043]
[1749025574971,0.7665,2642.0,2641.4,8.0]
[1749025575258,0.7665,2642.0,2641.3,20.0]
[1749025575459,0.7665,2642.0,2641.4,8.46836089]
[1749025575618,0.7665,2642.0,2641.8,8.0]
[1749025575823,0.7665,2642.0,2641.6,8.0]
[1749025576018,0.7665,2642.0,2641.8,8.0]
[1749025576223,0.7665,2642.0,2641.6,8.0]
[1749025576444,0.7665,2642.0,2641.8,8.0]
[1749025576646,0.7665,2642.0,2641.6,8.0]
[1749025576815,0.7665,2642.0,2641.4,0.46836089]
[1749025577020,0.7665,2642.0,2641.5,8.0]
[1749025577259,0.7665,2642.0,2641.6,10.0]
[1749025578727,0.7665,2642.0,2641.8,8.0]
[1749025578923,0.7665,2642.0,2641.9,18.0]
[1749025579247,0.7665,2642.0,2641.9,17.26949]
[1749025579639,0.7665,2642.0,2641.9,8.0]
[1749025580933,1.6585,2642.0,2641.9,8.0]
[1749025581352,1.6585,2642.0,2641.1,1.20876554]
[1749025581353,0.55,2641.7,2641.1,1.20876554]
[1749025581525,0.7559,2641.8,2641.1,0.02]
[1749025581526,0.7559,2641.6,2641.1,0.02]
[1749025581877,0.7559,2641.6,2641.2,10.0]
[1749025582026,0.7559,2641.6,2641.1,0.02]
[1749025582358,0.55,2642.1,2641.1,0.02]
[1749025582359,0.8132,2641.8,2641.5,8.0]
[1749025582675,0.8132,2641.8,2641.7,18.0]
[1749025582972,0.8132,2641.8,2641.7,8.033247]
[1749025583173,0.8132,2641.8,2641.4,9.480173]
[1749025586748,0.8132,2641.8,2641.6,8.0]
[1749025586951,0.8132,2641.8,2641.1,0.02]
[1749025587158,0.8132,2641.8,2641.4,10.0]
[1749025588375,0.7968,2641.7,2641.1,1.20876554]
[1749025588540,0.7968,2641.7,2641.1,0.02]
[1749025588735,0.871,2641.6,2641.3,8.0]
[1749025589142,0.871,2641.6,2641.1,0.02]
[1749025589349,0.871,2641.6,2641.3,8.0]
[1749025589636,0.871,2641.6,2641.5,10.0]
[1749025589841,0.871,2641.6,2641.3,8.0]
[1749025590177,0.871,2641.6,2641.4,10.0]
[1749025590676,0.871,2641.6,2641.4,8.100447]
[1749025590859,0.871,2641.6,2641.5,8.0]
[1749025591751,0.871,2641.6,2641.1,0.02]
[1749025592090,1.6678,2641.7,2641.4,10.0]
[1749025592451,0.7968,2641.7,2641.4,10.0]
[1749025595784,0.7968,2641.7,2641.3,20.0]
[1749025596083,0.7968,2641.7,2641.1,1.20876554]
[1749025596255,0.7968,2641.7,2641.3,8.0]
[1749025596462,0.7968,2641.7,2641.4,10.0]
[1749025598160,0.7968,2641.7,2641.3,8.0]
[1749025598161,0.7807,2641.5,2641.1,0.02]
[1749025598390,0.55,2641.4,2640.7,1.18876554]
[1749025598595,0.7807,2641.1,2640.3,1.18876554]
[1749025598903,0.7807,2640.9,2640.3,8.0]
[1749025599105,0.7807,2640.9,2640.2,10.0]
[1749025599600,0.7807,2640.9,2640.3,8.0]
[1749025599805,0.7807,2640.9,2640.1,0.02]
[1749025600369,0.7807,2640.9,2640.3,8.0]
[1749025600882,0.871,2640.8,2640.3,8.0]
[1749025601086,0.7807,2640.9,2640.3,8.0]
[1749025601284,0.871,2640.8,2640.1,0.02]
[1749025601486,0.871,2640.7,2640.4,10.0]
[1749025603509,0.871,2640.7,2640.1,0.75045803]
[1749025603736,0.871,2640.7,2640.5,8.0]
[1749025604029,0.871,2640.7,2640.3,8.0]
[1749025604215,0.871,2640.8,2640.3,8.0]
[1749025604417,0.871,2640.8,2640.1,0.75045803]
[1749025604588,0.871,2640.8,2640.5,8.0]
[1749025604774,0.871,2640.8,2640.1,0.53686089]
[1749025605326,0.7807,2640.9,2640.3,8.0]
[1749025605474,0.871,2640.8,2640.4,10.0]
[1749025605781,8.361268,2642.6,2640.4,10.0]